[Event "46th GRE-chT Premier 2018"]
[Site "Rio Achaia"]
[Date "2018.07.10"]
[Round "1"]
[White "Giatrakos, Orestis"]
[Black "Gkikas, Vasilios"]
[Result "1/2-1/2"]
[ECO "B32"]
[WhiteElo "1860"]
[BlackElo "1892"]
[Annotator "NA"]
[PlyCount "65"]
[EventDate "2018.07.10"]
[EventType "team-tourn"]
[EventCountry "GRE"]
[SourceTitle "playchess.com"]
[Source "ChessBase"]
[SourceQuality "1"]
[TimeControl "40/5400+30:1800+30"]

1. e4 {[%emt 0:00:00]} c5 {[%emt 0:00:51]} 2. Nf3 {[%emt 0:00:00]} Nc6 {[%emt 0:00:52]} 3. d4 {[%emt 0:00:05]} cxd4 {[%emt 0:00:33]} 4. Nxd4 {[%emt 0:00:08]} e5 {[%emt 0:00:20]} 5. Nb5 {[%emt 0:01:55]} d6 {[%emt 0:00:28]} 6. N1c3 {[%emt 0:03:08]} a6 {[%emt 0:00:45]} 7. Na3 {[%emt 0:00:09]} Be7 {[%emt 0:04:58]} 8. Nd5 {[%emt 0:11:42]} Nf6 {[%emt 0:01:07]} 9. Nxf6+ {[%emt 0:07:04]} Bxf6 {[%emt 0:02:03]} 10. c3 {[%emt 0:11:02]} O-O {[%emt 0:03:15]} 11. g3 {[%emt 0:03:31]} Be6 {[%emt 0:13:00]} 12. Bg2 {[%emt 0:00:41]} Bg5 {[%emt 0:02:15]} 13. O-O {[%emt 0:04:27]} Bxc1 {[%emt 0:01:25]} 14. Qxc1 {[%emt 0:01:06]} Rc8 {[%emt 0:03:48]} 15. Qd2 {[%emt 0:00:07]} Qb6 {[%emt 0:00:17]} 16. Kh1 {[%emt 0:04:40]} Rfd8 {[%emt 0:05:36]} 17. Nc2 {[%emt 0:03:14]} Na5 {[%emt 0:06:26]} 18. Ne3 {[%emt 0:02:02]} Nc4 {[%emt 0:00:09]} 19. Nxc4 {[%emt 0:00:07]} Rxc4 {[%emt 0:00:05]} 20. b3 {[%emt 0:00:24]} Rcc8 {[%emt 0:00:11]} 21. f4 {[%emt 0:02:26]} f6 {[%emt 0:00:54]} 22. f5 {[%emt 0:01:35]} Bf7 {[%emt 0:00:20]} 23. c4 {[%emt 0:01:09]} Qc7 {[%emt 0:01:26]} 24. Rfc1 {[%emt 0:02:07]} Be8 {[%emt 0:06:00]} 25. a4 {[%emt 0:00:26]} Bf7 {[%emt 0:01:25]} 26. g4 {[%emt 0:01:22]} Qe7 {[%emt 0:01:00]} 27. a5 {[%emt 0:00:16]} Rb8 {[%emt 0:01:45]} 28. h4 {[%emt 0:01:48]} b6 {[%emt 0:01:44]} 29. axb6 {[%emt 0:00:08]} Rxb6 {[%emt 0:00:32]} 30. b4 {[%emt 0:11:51]} Rdb8 {[%emt 0:12:14]} 31. c5 {[%emt 0:01:49]} dxc5 {[%emt 0:00:14]} 32. bxc5 {[%emt 0:00:05]} Rc6 {[%emt 0:00:06]} 33. Ra5 {[%emt 0:03:00]} 1/2-1/2

[Event "46th GRE-chT Premier 2018"]
[Site "Rio Achaia"]
[Date "2018.07.10"]
[Round "1"]
[White "Koutsogiannopoulou, Theodora"]
[Black "Paehtz, Elisabeth"]
[Result "0-1"]
[ECO "D00"]
[WhiteElo "1852"]
[BlackElo "2489"]
[Annotator "ChessBase"]
[PlyCount "54"]
[EventDate "2018.07.10"]
[EventType "team-tourn"]
[EventCountry "GRE"]
[SourceTitle "playchess.com"]
[Source "ChessBase"]
[SourceQuality "1"]
[TimeControl "40/5400+30:1800+30"]

1. d4 {[%emt 0:00:00]} d5 {[%emt 0:00:00]} 2. Bg5 {[%emt 0:00:00]} c6 {[%emt 0:00:08]} 3. c3 {[%emt 0:00:08]} g6 {[%emt 0:00:28]} 4. Nd2 {[%emt 0:05:32]} Bg7 {[%emt 0:00:28]} 5. g3 {[%emt 0:01:36]} f6 {[%emt 0:01:24]} 6. Be3 {[%emt 0:01:51]} e5 {[%emt 0:00:11]} 7. Bg2 {[%emt 0:01:11]} Ne7 {[%emt 0:00:08]} 8. f3 {[%emt 0:01:16]} Nf5 {[%emt 0:08:47]} 9. Bf2 {[%emt 0:00:29]} exd4 {[%emt 0:01:30]} 10. cxd4 {[%emt 0:00:37]} O-O {[%emt 0:00:27]} 11. Qb3 {[%emt 0:07:04]} Re8 {[%emt 0:03:19]} 12. O-O-O {[%emt 0:09:59]} a5 {[%emt 0:01:33]} 13. g4 {[%emt 0:04:57]} a4 {[%emt 0:02:56]} 14. Qd3 {[%emt 0:05:43]} Nd6 {[%emt 0:00:08]} 15. h4 {[%emt 0:04:46]} a3 {[%emt 0:00:17]} 16. b3 {[%emt 0:01:55]} Na6 {[%emt 0:00:17]} 17. Nf1 {[%emt 0:05:07]} Nb5 {[%emt 0:05:18]} 18. Kb1 {[%emt 0:03:29]} f5 {[%emt 0:04:00]} 19. h5 {[%emt 0:09:59]} Qf6 {[%emt 0:00:49]} 20. hxg6 {[%emt 0:14:14]} Qxg6 {[%emt 0:03:26]} 21. Ka1 {[%emt 0:09:20]} fxg4 {[%emt 0:00:44]} 22. Qd2 {[%emt 0:03:35]} c5 {[%emt 0:02:08]} 23. e3 {[%emt 0:02:37]} Nb4 {[%emt 0:00:14]} 24. e4 {[%emt 0:04:16]} Nxd4 {[%emt 0:01:10]} 25. Bxd4 {[%emt 0:00:49]} Bxd4+ {[%emt 0:00:05]} 26. Kb1 {[%emt 0:00:12]} Bg7 {[%emt 0:02:11]} 27. Ne3 {[%emt 0:00:56]} Qf6 {[%emt 0:00:09]} 0-1

[Event "46th GRE-chT Premier 2018"]
[Site "Rio Achaia"]
[Date "2018.07.10"]
[Round "1"]
[White "Stefanou, Dimitrios"]
[Black "Fotiadis, Alexandros"]
[Result "1-0"]
[ECO "E95"]
[WhiteElo "1824"]
[BlackElo "1336"]
[Annotator "NA"]
[PlyCount "69"]
[EventDate "2018.07.10"]
[EventType "team-tourn"]
[EventCountry "GRE"]
[SourceTitle "playchess.com"]
[Source "ChessBase"]
[SourceQuality "1"]
[TimeControl "40/5400+30:1800+30"]

1. d4 {[%emt 0:00:00]} Nf6 {[%emt 0:00:00]} 2. Nf3 {[%emt 0:00:23]} g6 {[%emt 0:00:09]} 3. c4 {[%emt 0:01:00]} Bg7 {[%emt 0:00:32]} 4. Nc3 {[%emt 0:00:28]} d6 {[%emt 0:00:28]} 5. e4 {[%emt 0:00:56]} O-O {[%emt 0:02:47]} 6. Be2 {[%emt 0:00:39]} Nbd7 {[%emt 0:02:42]} 7. O-O {[%emt 0:00:32]} e5 {[%emt 0:02:50]} 8. Re1 {[%emt 0:03:08]} Re8 {[%emt 0:07:52]} 9. Bf1 {[%emt 0:06:59]} Re7 {[%emt 0:15:42]} 10. a3 {[%emt 0:18:32]} Qe8 {[%emt 0:06:37]} 11. d5 {[%emt 0:04:26]} Qf8 {[%emt 0:07:38]} 12. b4 {[%emt 0:04:40]} Ne8 {[%emt 0:02:27]} 13. a4 {[%emt 0:20:21]} f5 {[%emt 0:02:59]} 14. Ng5 {[%emt 0:04:30]} Ndf6 {[%emt 0:00:20]} 15. c5 {[%emt 0:02:24]} h6 {[%emt 0:01:31]} 16. Ne6 {[%emt 0:02:16]} Bxe6 {[%emt 0:00:49]} 17. dxe6 {[%emt 0:00:09]} f4 {[%emt 0:01:28]} 18. Nd5 {[%emt 0:06:26]} Nxd5 {[%emt 0:00:23]} 19. exd5 {[%emt 0:00:58]} e4 {[%emt 0:12:47]} 20. Rb1 {[%emt 0:01:37]} Qf5 {[%emt 0:00:42]} 21. Bb2 {[%emt 0:07:02]} Bxb2 {[%emt 0:01:34]} 22. Rxb2 {[%emt 0:00:06]} Nf6 {[%emt 0:00:03]} 23. Rd2 {[%emt 0:03:10]} g5 {[%emt 0:03:39]} 24. Qb3 {[%emt 0:01:48]} g4 {[%emt 0:02:57]} 25. Qc4 {[%emt 0:02:51]} Rg7 {[%emt 0:03:40]} 26. Rd4 {[%emt 0:02:13]} g3 {[%emt 0:04:01]} 27. hxg3 {[%emt 0:00:39]} fxg3 {[%emt 0:00:07]} 28. fxg3 {[%emt 0:00:27]} Rxg3 {[%emt 0:01:59]} 29. cxd6 {[%emt 0:00:16]} cxd6 {[%emt 0:00:58]} 30. Qc7 {[%emt 0:00:09]} Qe5 {[%emt 0:02:23]} 31. Rc4 {[%emt 0:00:38]} Qxd5 {[%emt 0:05:04]} 32. Qf7+ {[%emt 0:00:17]} Kh8 {[%emt 0:00:10]} 33. Qxf6+ {[%emt 0:00:00]} Kh7 {[%emt 0:00:12]} 34. Rc7+ {[%emt 0:00:04]} Kg8 {[%emt 0:00:12]} 35. Qf7+ {Rg7} 1-0

[Event "46th GRE-chT Premier 2018"]
[Site "Rio Achaia"]
[Date "2018.07.10"]
[Round "1"]
[White "Hidzos, Georgios"]
[Black "Michelakos, Panagiotis"]
[Result "0-1"]
[ECO "B35"]
[WhiteElo "1822"]
[BlackElo "2244"]
[Annotator "NA"]
[PlyCount "56"]
[EventDate "2018.07.10"]
[EventType "team-tourn"]
[EventCountry "GRE"]
[SourceTitle "playchess.com"]
[Source "ChessBase"]
[SourceQuality "1"]
[TimeControl "40/5400+30:1800+30"]

1. e4 {[%emt 0:00:00]} c5 {[%emt 0:01:17]} 2. Nf3 {[%emt 0:00:00]} Nc6 {[%emt 0:00:19]} 3. d4 {[%emt 0:00:00]} cxd4 {[%emt 0:00:08]} 4. Nxd4 {[%emt 0:00:06]} g6 {[%emt 0:01:21]} 5. Nc3 {[%emt 0:00:39]} Bg7 {[%emt 0:00:11]} 6. Be3 {[%emt 0:00:06]} Nf6 {[%emt 0:00:17]} 7. Bc4 {[%emt 0:00:06]} O-O {[%emt 0:02:27]} 8. Bb3 {[%emt 0:00:16]} d5 {[%emt 0:04:54]} 9. exd5 {[%emt 0:16:01]} Na5 {[%emt 0:00:08]} 10. h3 {[%emt 0:03:44]} Nxb3 {[%emt 0:02:54]} 11. Nxb3 {[%emt 0:04:38]} b5 {[%emt 0:02:19]} 12. d6 {[%emt 0:21:27]} Bb7 {[%emt 0:32:30]} 13. O-O {[%emt 0:01:59]} exd6 {[%emt 0:07:12]} 14. Nxb5 {[%emt 0:01:49]} Nd5 {[%emt 0:01:43]} 15. Bd4 {[%emt 0:00:46]} Bh6 {[%emt 0:00:23]} 16. c4 {[%emt 0:10:16]} Nf4 {[%emt 0:09:19]} 17. Be3 {[%emt 0:00:07]} Nxg2 {[%emt 0:12:48]} 18. Bxh6 {[%emt 0:00:12]} Qh4 {[%emt 0:00:11]} 19. Qd2 {[%emt 0:14:22]} Qxh3 {[%emt 0:04:56]} 20. f3 {[%emt 0:01:24]} Nh4 {[%emt 0:00:28]} 21. Qh2 {[%emt 0:00:17]} Nxf3+ {[%emt 0:00:57]} 22. Rxf3 {[%emt 0:00:08]} Qxf3 {[%emt 0:00:06]} 23. Bxf8 {[%emt 0:01:08]} Rxf8 {[%emt 0:02:49]} 24. N5d4 {[%emt 0:06:09]} Qe4 {[%emt 0:03:09]} 25. Qg3 {[%emt 0:02:27]} Re8 {[%emt 0:02:36]} 26. Kf2 {[%emt 0:07:46]} Re5 {[%emt 0:00:30]} 27. Nf3 {[%emt 0:00:49]} Qe3+ {[%emt 0:00:29]} 28. Kf1 Bxf3 {[%emt 0:00:14]} 0-1

[Event "46th GRE-chT Premier 2018"]
[Site "Rio Achaia"]
[Date "2018.07.10"]
[Round "1"]
[White "Kafetzi, Angeliki"]
[Black "Grafakou, Sotiria-Aphrodite"]
[Result "1/2-1/2"]
[ECO "A46"]
[WhiteElo "1815"]
[BlackElo "1617"]
[Annotator "NA"]
[PlyCount "91"]
[EventDate "2018.07.10"]
[EventType "team-tourn"]
[EventCountry "GRE"]
[SourceTitle "playchess.com"]
[Source "ChessBase"]
[SourceQuality "1"]
[TimeControl "40/5400+30:1800+30"]

1. d4 {[%emt 0:00:00]} Nf6 {[%emt 0:00:00]} 2. Nf3 {[%emt 0:00:00]} e6 {[%emt 0:00:00]} 3. Bg5 {[%emt 0:00:00]} Be7 {[%emt 0:01:24]} 4. Nbd2 {[%emt 0:01:01]} d5 {[%emt 0:00:44]} 5. e3 {[%emt 0:00:41]} c5 {[%emt 0:00:54]} 6. c3 {[%emt 0:00:22]} Nc6 {[%emt 0:03:11]} 7. Bd3 {[%emt 0:00:21]} b6 {[%emt 0:01:59]} 8. O-O {[%emt 0:01:30]} O-O {[%emt 0:01:42]} 9. Ne5 {[%emt 0:03:44]} Nxe5 {[%emt 0:04:49]} 10. dxe5 {[%emt 0:00:14]} Nd7 {[%emt 0:00:44]} 11. Bxe7 {[%emt 0:00:04]} Qxe7 {[%emt 0:00:27]} 12. f4 {[%emt 0:00:15]} f5 {[%emt 0:14:53]} 13. exf6 {[%emt 0:11:48]} Nxf6 {[%emt 0:05:07]} 14. Nf3 {[%emt 0:04:16]} Nd7 {[%emt 0:12:13]} 15. Ng5 {[%emt 0:14:32]} g6 {[%emt 0:09:28]} 16. h4 {[%emt 0:12:34]} Nf6 {[%emt 0:06:17]} 17. Qe1 {[%emt 0:14:44]} e5 {[%emt 0:07:10]} 18. e4 {[%emt 0:07:20]} exf4 {[%emt 0:06:39]} 19. exd5 {[%emt 0:02:04]} Qe3+ {[%emt 0:04:53]} 20. Qxe3 {[%emt 0:00:32]} fxe3 {[%emt 0:00:11]} 21. Bc4 {[%emt 0:06:11]} Bd7 {[%emt 0:03:21]} 22. Ne6 {[%emt 0:04:34]} Bxe6 {[%emt 0:00:51]} 23. dxe6 {[%emt 0:00:04]} Kg7 {[%emt 0:00:57]} 24. Rad1 {[%emt 0:03:57]} Rae8 {[%emt 0:02:06]} 25. Rd6 {[%emt 0:01:12]} Re7 {[%emt 0:00:39]} 26. Rfd1 {[%emt 0:01:11]} Ne4 {[%emt 0:03:39]} 27. Rd7 {[%emt 0:01:36]} Rfe8 {[%emt 0:00:42]} 28. Rxe7+ {[%emt 0:01:05]} Rxe7 {[%emt 0:00:08]} 29. Re1 {[%emt 0:01:19]} Nd6 {[%emt 0:01:58]} 30. Bd5 {[%emt 0:00:39]} Nf5 {[%emt 0:00:30]} 31. g4 {[%emt 0:01:12]} Nh6 {[%emt 0:01:17]} 32. Rxe3 {[%emt 0:02:20]} Nxg4 {[%emt 0:00:13]} 33. Rf3 {[%emt 0:01:04]} Nf6 {[%emt 0:02:37]} 34. c4 {[%emt 0:01:16]} Ne8 {[%emt 0:01:03]} 35. a4 {[%emt 0:00:42]} Nc7 {[%emt 0:00:27]} 36. a5 {[%emt 0:01:12]} Nxe6 {[%emt 0:01:04]} 37. axb6 {[%emt 0:00:40]} axb6 {[%emt 0:00:34]} 38. Rb3 {[%emt 0:00:18]} Nd4 {[%emt 0:00:24]} 39. Rxb6 {[%emt 0:00:21]} Re1+ {[%emt 0:01:16]} 40. Kf2 {[%emt 0:00:00]} Re2+ {[%emt 0:00:00]} 41. Kg3 {[%emt 0:03:46]} Nf5+ {[%emt 0:05:24]} 42. Kf3 {[%emt 0:09:34]} Nd4+ {[%emt 0:04:56]} 43. Kg4 {[%emt 0:01:34]} Re7 {[%emt 0:04:13]} 44. h5 {[%emt 0:07:02]} gxh5+ {[%emt 0:02:04]} 45. Kxh5 Rc7 46. Rb8 1/2-1/2

[Event "46th GRE-chT Premier 2018"]
[Site "Rio Achaia"]
[Date "2018.07.10"]
[Round "1"]
[White "Georgitsi, Antigoni"]
[Black "Petraki, Argiro"]
[Result "0-1"]
[ECO "B38"]
[WhiteElo "1811"]
[BlackElo "1729"]
[Annotator "NA"]
[PlyCount "70"]
[EventDate "2018.07.10"]
[EventType "team-tourn"]
[EventCountry "GRE"]
[SourceTitle "playchess.com"]
[Source "ChessBase"]
[SourceQuality "1"]
[TimeControl "40/5400+30:1800+30"]

1. e4 {[%emt 0:00:00]} c5 {[%emt 0:00:00]} 2. Nf3 {[%emt 0:00:00]} Nc6 {[%emt 0:00:00]} 3. d4 {[%emt 0:00:05]} cxd4 {[%emt 0:00:00]} 4. Nxd4 {[%emt 0:00:05]} g6 {[%emt 0:00:00]} 5. c4 {[%emt 0:06:26]} Bg7 {[%emt 0:00:00]} 6. Be3 {[%emt 0:00:16]} Nf6 {[%emt 0:00:06]} 7. Nc3 {[%emt 0:00:16]} d6 {[%emt 0:00:08]} 8. Be2 {[%emt 0:00:51]} O-O {[%emt 0:00:16]} 9. O-O {[%emt 0:01:26]} Bd7 {[%emt 0:01:18]} 10. h3 {[%emt 0:00:28]} Nxd4 {[%emt 0:07:16]} 11. Bxd4 {[%emt 0:00:13]} Bc6 {[%emt 0:00:05]} 12. Qc2 {[%emt 0:00:07]} a5 {[%emt 0:04:12]} 13. Rad1 {[%emt 0:00:14]} Rc8 {[%emt 0:14:13]} 14. c5 {[%emt 0:19:45]} Re8 {[%emt 0:29:40]} 15. Be5 {[%emt 0:16:47]} Nd7 {[%emt 0:16:03]} 16. Bxg7 {[%emt 0:02:23]} Kxg7 {[%emt 0:00:03]} 17. cxd6 {[%emt 0:10:09]} exd6 {[%emt 0:00:19]} 18. Rxd6 {[%emt 0:13:54]} Qe7 {[%emt 0:06:53]} 19. Qd2 {[%emt 0:01:52]} Nf6 {[%emt 0:07:15]} 20. f3 {[%emt 0:03:07]} Nh5 {[%emt 0:02:59]} 21. Rd1 {[%emt 0:02:40]} Kg8 {[%emt 0:03:03]} 22. Bb5 {[%emt 0:04:40]} Bxb5 {[%emt 0:04:50]} 23. Nxb5 {[%emt 0:00:07]} Qe5 {[%emt 0:00:04]} 24. Rd5 {[%emt 0:01:45]} Qg3 {[%emt 0:01:03]} 25. Nd6 {[%emt 0:06:49]} Nf4 {[%emt 0:00:33]} 26. Rd4 {[%emt 0:06:33]} Rcd8 {[%emt 0:00:49]} 27. e5 {[%emt 0:01:11]} Rxd6 {[%emt 0:01:12]} 28. Rxd6 {[%emt 0:00:34]} Rxe5 {[%emt 0:00:10]} 29. Rd8+ {[%emt 0:00:47]} Kg7 {[%emt 0:00:04]} 30. Kh1 {[%emt 0:00:27]} Re2 {[%emt 0:01:25]} 31. Qd4+ {[%emt 0:00:47]} Kh6 {[%emt 0:00:17]} 32. Rg1 {[%emt 0:00:37]} Nxh3 {[%emt 0:00:59]} 33. Rd5 {[%emt 0:00:34]} Nf2+ {[%emt 0:00:25]} 34. Qxf2 {[%emt 0:00:12]} Rxf2 {[%emt 0:00:07]} 35. Rd4 {[%emt 0:00:14]} f5 {[%emt 0:00:14]} 0-1

[Event "46th GRE-chT Premier 2018"]
[Site "Rio Achaia"]
[Date "2018.07.10"]
[Round "1"]
[White "Eleftheriou, Georgios"]
[Black "Pavlidis, Pavlos"]
[Result "0-1"]
[ECO "A05"]
[WhiteElo "1790"]
[BlackElo "1906"]
[Annotator "NA"]
[PlyCount "62"]
[EventDate "2018.07.10"]
[EventType "team-tourn"]
[EventCountry "GRE"]
[SourceTitle "playchess.com"]
[Source "ChessBase"]
[SourceQuality "1"]
[TimeControl "40/5400+30:1800+30"]

1. Nf3 {[%emt 0:00:00]} Nf6 {[%emt 0:00:00]} 2. e3 {[%emt 0:00:00]} d5 {[%emt 0:00:00]} 3. b3 {[%emt 0:00:05]} e6 {[%emt 0:00:34]} 4. Bb2 {[%emt 0:01:50]} Be7 {[%emt 0:00:28]} 5. d4 {[%emt 0:01:19]} O-O {[%emt 0:00:31]} 6. Bd3 {[%emt 0:00:26]} b6 {[%emt 0:00:16]} 7. O-O {[%emt 0:01:17]} Bb7 {[%emt 0:00:58]} 8. Nbd2 {[%emt 0:00:45]} Ne4 {[%emt 0:11:16]} 9. a3 {[%emt 0:08:11]} Nd7 {[%emt 0:04:35]} 10. Ne5 {[%emt 0:01:05]} f6 {[%emt 0:12:39]} 11. Nxd7 {[%emt 0:02:42]} Qxd7 {[%emt 0:00:11]} 12. f3 {[%emt 0:00:10]} Nxd2 {[%emt 0:00:10]} 13. Qxd2 {[%emt 0:00:10]} c5 {[%emt 0:02:30]} 14. Rae1 {[%emt 0:03:12]} Rad8 {[%emt 0:06:59]} 15. Qe2 {[%emt 0:02:04]} Bd6 {[%emt 0:13:56]} 16. f4 {[%emt 0:02:53]} f5 {[%emt 0:06:41]} 17. Rf3 {[%emt 0:03:41]} c4 {[%emt 0:07:54]} 18. bxc4 {[%emt 0:01:51]} dxc4 {[%emt 0:00:07]} 19. Bxc4 {[%emt 0:00:08]} Bxf3 {[%emt 0:00:08]} 20. Qxf3 {[%emt 0:00:41]} Rde8 {[%emt 0:10:15]} 21. g4 {[%emt 0:10:11]} fxg4 {[%emt 0:05:43]} 22. Qxg4 {[%emt 0:01:45]} Rf6 {[%emt 0:01:01]} 23. Bd3 {[%emt 0:04:01]} Qe7 {[%emt 0:02:10]} 24. Re2 {[%emt 0:04:34]} Bxa3 {[%emt 0:03:26]} 25. Bxa3 {[%emt 0:00:33]} Qxa3 {[%emt 0:00:26]} 26. Bxh7+ {[%emt 0:00:41]} Kxh7 {[%emt 0:00:41]} 27. Qh5+ {[%emt 0:00:12]} Rh6 {[%emt 0:00:07]} 28. Qxe8 {[%emt 0:00:14]} Qc1+ {[%emt 0:00:08]} 29. Kg2 {[%emt 0:04:18]} Rg6+ {[%emt 0:00:42]} 30. Kf2 {[%emt 0:00:06]} Qg1+ {[%emt 0:00:43]} 31. Kf3 {[%emt 0:00:42]} Qh1+ {[%emt 0:00:27]} 0-1

[Event "46th GRE-chT Premier 2018"]
[Site "Rio Achaia"]
[Date "2018.07.10"]
[Round "1"]
[White "Mastrakouli, Evagelia"]
[Black "Louka, Magdalini"]
[Result "1-0"]
[ECO "D10"]
[WhiteElo "1779"]
[BlackElo "1814"]
[Annotator "NA"]
[PlyCount "69"]
[EventDate "2018.07.10"]
[EventType "team-tourn"]
[EventCountry "GRE"]
[SourceTitle "playchess.com"]
[Source "ChessBase"]
[SourceQuality "1"]
[TimeControl "40/5400+30:1800+30"]

1. d4 {[%emt 0:00:00]} d5 {[%emt 0:00:00]} 2. c4 {[%emt 0:00:00]} c6 {[%emt 0:00:00]} 3. Nc3 {[%emt 0:00:06]} Nf6 {[%emt 0:00:08]} 4. Qc2 {[%emt 0:02:01]} e6 {[%emt 0:01:13]} 5. cxd5 {[%emt 0:00:29]} exd5 {[%emt 0:01:01]} 6. Bf4 {[%emt 0:01:41]} Bd6 {[%emt 0:03:06]} 7. Bg5 {[%emt 0:04:16]} O-O {[%emt 0:03:34]} 8. e3 {[%emt 0:01:31]} Re8 {[%emt 0:03:19]} 9. Bd3 {[%emt 0:01:27]} h6 {[%emt 0:01:56]} 10. Bh4 {[%emt 0:00:27]} Nbd7 {[%emt 0:01:19]} 11. Nge2 {[%emt 0:03:33]} a6 {[%emt 0:10:00]} 12. h3 {[%emt 0:08:30]} Qe7 {[%emt 0:11:40]} 13. O-O {[%emt 0:06:37]} g5 {[%emt 0:12:00]} 14. Bg3 {[%emt 0:03:06]} Nh5 {[%emt 0:02:03]} 15. e4 {[%emt 0:14:35]} Bxg3 {[%emt 0:16:18]} 16. fxg3 {[%emt 0:11:04]} dxe4 {[%emt 0:08:24]} 17. Nxe4 {[%emt 0:00:33]} Ndf6 {[%emt 0:01:39]} 18. N2c3 {[%emt 0:01:36]} Nxe4 {[%emt 0:03:43]} 19. Nxe4 {[%emt 0:00:27]} f5 {[%emt 0:00:55]} 20. g4 {[%emt 0:21:17]} fxe4 {[%emt 0:04:38]} 21. Bc4+ {[%emt 0:00:42]} Be6 {[%emt 0:00:44]} 22. gxh5 {[%emt 0:00:43]} Bxc4 {[%emt 0:03:34]} 23. Qxc4+ {[%emt 0:00:04]} Qe6 {[%emt 0:00:00]} 24. Qc3 {[%emt 0:04:43]} Rf8 {[%emt 0:03:28]} 25. Qb4 {[%emt 0:04:26]} Rf7 {[%emt 0:02:56]} 26. Rxf7 {[%emt 0:01:44]} Qxf7 {[%emt 0:00:06]} 27. Rf1 {[%emt 0:00:26]} Qd7 {[%emt 0:02:06]} 28. Qc4+ {[%emt 0:04:58]} Kg7 {[%emt 0:00:50]} 29. d5 {[%emt 0:02:02]} cxd5 {[%emt 0:02:38]} 30. Qd4+ {[%emt 0:00:04]} Kh7 {[%emt 0:00:51]} 31. Rf6 {[%emt 0:01:32]} Rg8 {[%emt 0:00:48]} 32. Qb6 {[%emt 0:00:28]} Kg7 {[%emt 0:00:26]} 33. Rg6+ {[%emt 0:00:28]} Kh7 {[%emt 0:00:32]} 34. Rxh6+ {[%emt 0:00:09]} Kg7 {[%emt 0:00:13]} 35. Qf6# 1-0

[Event "46th GRE-chT Premier 2018"]
[Site "Rio Achaia"]
[Date "2018.07.10"]
[Round "1"]
[White "Antoniadou, Paraskevi"]
[Black "Ratsma, Rosa"]
[Result "1-0"]
[ECO "B51"]
[WhiteElo "1764"]
[BlackElo "2265"]
[Annotator "NA"]
[PlyCount "124"]
[EventDate "2018.07.10"]
[EventType "team-tourn"]
[EventCountry "GRE"]
[SourceTitle "playchess.com"]
[Source "ChessBase"]
[SourceQuality "1"]
[TimeControl "40/5400+30:1800+30"]

1. e4 {[%emt 0:00:00]} c5 {[%emt 0:00:00]} 2. Nf3 {[%emt 0:00:00]} d6 {[%emt 0:00:00]} 3. Bb5+ {[%emt 0:00:00]} Nd7 {[%emt 0:00:21]} 4. O-O {[%emt 0:00:43]} a6 {[%emt 0:00:13]} 5. Bd3 {[%emt 0:00:21]} Ngf6 {[%emt 0:00:34]} 6. a4 {[%emt 0:01:11]} e5 {[%emt 0:07:36]} 7. c3 {[%emt 0:01:17]} Be7 {[%emt 0:01:10]} 8. Bc2 {[%emt 0:00:35]} O-O {[%emt 0:00:33]} 9. d4 {[%emt 0:00:39]} cxd4 {[%emt 0:00:34]} 10. cxd4 {[%emt 0:00:11]} Re8 {[%emt 0:01:36]} 11. Re1 {[%emt 0:01:36]} Rb8 {[%emt 0:04:59]} 12. Nbd2 {[%emt 0:06:01]} Bf8 {[%emt 0:08:39]} 13. Nf1 {[%emt 0:04:39]} g6 {[%emt 0:02:51]} 14. Bd2 {[%emt 0:04:48]} exd4 {[%emt 0:12:29]} 15. Nxd4 {[%emt 0:04:18]} Bg7 {[%emt 0:01:47]} 16. Bc3 {[%emt 0:13:35]} Qc7 {[%emt 0:07:43]} 17. Nf3 {[%emt 0:07:19]} Ne5 {[%emt 0:06:29]} 18. h3 {[%emt 0:03:46]} Be6 {[%emt 0:04:57]} 19. Nd4 {[%emt 0:06:37]} Bd7 {[%emt 0:04:48]} 20. Ne3 {[%emt 0:04:27]} b5 {[%emt 0:02:23]} 21. axb5 {[%emt 0:02:11]} axb5 {[%emt 0:00:17]} 22. Bb4 {[%emt 0:01:58]} Nc4 {[%emt 0:02:18]} 23. b3 {[%emt 0:06:03]} Nxe3 {[%emt 0:01:11]} 24. Rxe3 {[%emt 0:00:10]} d5 {[%emt 0:06:50]} 25. Rc3 {[%emt 0:04:45]} Qe5 {[%emt 0:01:57]} 26. Nf3 {[%emt 0:01:22]} Qf4 {[%emt 0:04:40]} 27. g3 {[%emt 0:07:16]} Qh6 {[%emt 0:00:06]} 28. e5 {[%emt 0:00:25]} Ne4 {[%emt 0:04:06]} 29. Bxe4 {[%emt 0:00:30]} dxe4 {[%emt 0:00:09]} 30. Qxd7 {[%emt 0:01:39]} Rbd8 {[%emt 0:00:51]} 31. Qb7 {[%emt 0:01:53]} exf3 {[%emt 0:00:59]} 32. Rxf3 {[%emt 0:00:07]} Qxh3 {[%emt 0:01:47]} 33. Rxf7 {[%emt 0:05:58]} Bxe5 {[%emt 0:01:15]} 34. Re1 {[%emt 0:04:00]} Bd4 {[%emt 0:06:44]} 35. Rxe8+ {[%emt 0:02:04]} Rxe8 {[%emt 0:00:06]} 36. Qf3 {[%emt 0:00:13]} Qc8 {[%emt 0:03:43]} 37. Rb7 {[%emt 0:01:52]} Qe6 {[%emt 0:01:08]} 38. Rxb5 {[%emt 0:02:15]} Qe4 {[%emt 0:00:35]} 39. Qxe4 {[%emt 0:00:44]} Rxe4 {[%emt 0:00:05]} 40. Bc5 {[%emt 0:00:00]} Be5 {[%emt 0:00:00]} 41. Rb7 {[%emt 0:02:32]} Bc3 {[%emt 0:04:18]} 42. Kg2 {[%emt 0:02:08]} h5 {[%emt 0:02:42]} 43. Kf3 {[%emt 0:01:18]} Re5 {[%emt 0:01:40]} 44. b4 {[%emt 0:02:12]} g5 {[%emt 0:02:03]} 45. Be3 {[%emt 0:04:50]} h4 {[%emt 0:03:49]} 46. Kg2 {[%emt 0:03:25]} Be1 {[%emt 0:03:15]} 47. Bc5 {[%emt 0:02:46]} Rf5 {[%emt 0:01:22]} 48. Re7 {[%emt 0:00:48]} Bc3 {[%emt 0:01:58]} 49. Re4 {[%emt 0:01:11]} hxg3 {[%emt 0:02:59]} 50. Kxg3 {[%emt 0:00:39]} Kf7 {[%emt 0:01:12]} 51. Kg4 {[%emt 0:01:09]} Rd5 {[%emt 0:01:25]} 52. Rc4 {[%emt 0:01:30]} Bd2 {[%emt 0:04:15]} 53. b5 {[%emt 0:00:28]} Bf4 {[%emt 0:00:26]} 54. b6 {[%emt 0:00:36]} Rd7 {[%emt 0:01:00]} 55. Be3 {[%emt 0:02:58]} Ke6 {[%emt 0:05:12]} 56. Bxf4 {[%emt 0:01:51]} gxf4 {[%emt 0:00:11]} 57. Kxf4 {[%emt 0:02:05]} Rf7+ {[%emt 0:00:50]} 58. Ke3 {[%emt 0:00:10]} Kd6 {[%emt 0:00:50]} 59. f4 {[%emt 0:03:37]} Rb7 {[%emt 0:00:54]} 60. Rb4 {[%emt 0:00:20]} Kc6 {[%emt 0:00:32]} 61. Ke4 {[%emt 0:00:25]} Re7+ {[%emt 0:00:36]} 62. Kf5 {[%emt 0:00:30]} Kb7 {[%emt 0:00:28] Ke4} 1-0